bitfinex-derivatives/quotes_ETHF0:USTF0_20251013
["timestamp","ask_amount","ask_price","bid_price","bid_amount"]
[1760337229672,3.98057,4177.1,4176.2,0.2706]
[1760337229865,0.43068,4176.9,4176.2,0.2706]
[1760337230172,0.43068,4176.9,4176.0,0.00293899]
[1760337230173,0.3421,4177.9,4177.2,0.43064]
[1760337230467,3.3395,4178.4,4176.4,1.07681]
[1760337230468,0.43057,4178.0,4177.5,0.43062]
[1760337230672,0.3421,4178.2,4177.5,0.70122]
[1760337230973,0.34378559,4177.6,4177.2,0.43065]
[1760337231273,0.34378559,4177.6,4176.5,0.62143272]
[1760337231274,0.43065,4177.2,4176.5,0.43072]
[1760337231463,0.43067,4177.1,4176.3,0.2706]
[1760337231665,0.00168559,4177.6,4177.0,0.43066]
[1760337231974,0.00168559,4177.6,4176.7,3.4784]
[1760337232177,0.43066,4177.2,4176.7,3.2078]
[1760337232472,0.43066,4177.2,4176.3,0.43074]
[1760337232473,0.43066,4177.1,4176.3,0.43073]
[1760337232770,0.43068,4176.9,4176.2,3.2078]
[1760337232970,0.77278,4176.9,4176.2,3.63854]
[1760337233266,0.1302,4177.0,4176.2,3.2078]
[1760337233267,0.3421,4176.7,4176.2,3.2078]
[1760337233468,0.3421,4176.5,4176.2,3.2078]
[1760337233674,0.3421,4178.2,4176.5,0.0647]
[1760337233974,0.34378559,4177.6,4177.5,3.2078]
[1760337234375,0.34378559,4177.6,4177.5,3.63842]
[1760337234376,0.00168559,4177.6,4177.5,3.63842]
[1760337234571,0.00168559,4177.6,4177.5,3.90902]
[1760337235078,0.34378559,4177.6,4177.0,3.2078]
[1760337235375,0.00168559,4177.6,4177.5,0.43062]
[1760337235567,0.00168559,4177.6,4177.0,3.2078]
[1760337235765,0.56082,4177.5,4177.0,3.2078]
[1760337235969,0.56082,4177.5,4176.2,0.2706]
[1760337235970,0.1302,4177.0,4176.5,3.2078]
[1760337236170,0.3421,4176.9,4176.6,0.4307]
[1760337236577,0.3421,4177.1,4176.6,0.4307]
[1760337237079,0.3421,4176.8,4176.5,3.2078]
[1760337237385,0.3421,4176.7,4176.6,0.43071]
[1760337237576,3.2078,4177.2,4176.5,3.2078]
[1760337237871,0.3421,4177.3,4176.3,1.34745]
[1760337237872,0.3421,4177.3,4177.1,3.63846]
[1760337238074,0.1302,4177.5,4177.1,3.63846]
[1760337238075,0.1302,4177.5,4177.1,3.2078]
[1760337238475,0.3421,4176.9,4176.5,3.2078]
[1760337238876,0.3421,4176.6,4176.5,3.2078]
[1760337239476,0.3421,4176.6,4176.0,0.00293899]
[1760337239477,0.77286,4176.1,4176.0,0.00293899]
[1760337239677,0.3421,4176.1,4176.0,0.00293899]
[1760337239878,0.1302,4176.5,4176.0,0.00293899]
[1760337240179,3.51900356,4176.4,4176.0,0.00293899]
[1760337240379,0.3421,4176.1,4176.0,0.00293899]
[1760337240579,3.5499,4176.1,4176.0,0.00293899]
[1760337240878,6.72680356,4176.1,4176.0,0.00293899]
[1760337241077,0.3421,4176.1,4176.0,0.00293899]
[1760337241283,3.5499,4176.1,4176.0,0.00293899]
[1760337241473,6.6233075,4176.1,4175.4,3.2078]
[1760337241777,6.6233075,4176.1,4174.8,0.43089]
[1760337241778,0.4723,4175.5,4174.9,3.2078]
[1760337241970,0.4309,4174.8,4174.4,3.2078]
[1760337242175,0.1302,4174.5,4174.4,3.2078]
[1760337242370,0.1302,4174.5,4173.9,3.63878]
[1760337242371,0.4723,4174.5,4173.9,3.63878]
[1760337242583,0.3421,4174.4,4174.3,0.43095]
[1760337242976,0.13282037,4174.5,4173.9,3.21052664]
[1760337243173,0.3421,4174.4,4174.3,0.43094]
[1760337243381,0.00262037,4174.5,4174.4,0.2706]
[1760337243677,0.00262037,4174.5,4174.4,3.4784]
[1760337244381,0.1302,4175.5,4174.4,3.4784]
[1760337244578,0.3421,4175.4,4175.3,3.2078]
[1760337244785,0.3421,4175.4,4175.3,3.63864]
[1760337245472,0.43077,4176.1,4175.6,0.43081]
[1760337245678,0.3421,4175.8,4175.4,0.43083]
[1760337245879,0.3421,4174.9,4174.8,3.2078]
[1760337246774,0.43089,4174.8,4174.2,3.2078]
[1760337246982,3.17782645,4174.9,4174.5,0.43092]
[1760337247374,0.3421,4174.6,4174.5,0.43092]
[1760337247573,0.4723,4175.0,4174.2,3.2078]
[1760337247784,0.3421,4174.9,4174.2,3.2078]
[1760337247983,0.1302,4175.0,4174.7,3.2078]
[1760337248286,0.3421,4174.9,4174.8,0.43089]
[1760337248877,0.1302,4175.0,4174.7,3.2078]
[1760337249074,0.3421,4174.9,4174.7,3.2078]
[1760337249279,0.1302,4175.0,4174.7,3.2078]
[1760337249684,0.3421,4174.9,4174.7,3.2078]
[1760337249880,0.3421,4174.9,4174.7,3.6387]
[1760337250283,0.4723,4175.0,4174.9,0.43088]
[1760337251581,0.4723,4175.0,4174.7,3.2078]
[1760337251582,0.3421,4174.9,4174.7,3.2078]
[1760337251980,0.3421,4174.9,4173.9,0.00272664]
[1760337251981,0.1302,4174.5,4174.2,3.2078]
[1760337252186,0.56113,4174.5,4174.2,3.2078]
[1760337252374,0.3421,4174.3,4174.2,3.2078]
[1760337254384,0.4723,4174.5,4174.3,0.43095]
[1760337254586,0.3421,4174.4,4174.3,0.43095]
[1760337255688,0.4723,4175.0,4174.9,0.43088]
[1760337255893,0.4723,4175.5,4175.4,0.43083]
[1760337256578,0.4723,4175.5,4175.4,3.63863]
[1760337256579,0.3421,4175.5,4175.4,3.63863]
[1760337257291,0.46676035,4176.0,4175.9,0.43078]
[1760337257587,0.46676035,4176.0,4175.4,3.2078]
[1760337257588,0.3345,4175.9,4175.7,0.4308]
[1760337258088,0.1373,4175.5,4175.4,3.2078]
[1760337258284,0.3345,4175.4,4175.3,0.43084]
[1760337258583,3.3789475,4175.9,4175.4,1.34729]
[1760337258781,0.00206035,4176.0,4175.9,0.43078]
[1760337260489,0.33656035,4176.0,4175.9,0.43078]
[1760337261082,0.00206035,4176.0,4175.9,0.70098]
[1760337261895,0.47386035,4176.0,4175.9,1.26481907]
[1760337262087,0.00206035,4176.0,4175.9,0.43078]
[1760337262288,0.00206035,4176.0,4175.9,0.70098]
[1760337263588,0.33656035,4176.0,4175.9,0.43078]
[1760337263983,0.33656035,4176.0,4175.8,0.43079]
[1760337263984,0.13936035,4176.0,4175.8,0.43079]
[1760337264292,0.13936035,4176.0,4175.7,0.4308]
[1760337264293,0.3345,4175.9,4175.7,0.4308]
[1760337264494,0.13936035,4176.0,4175.7,0.4308]
[1760337264788,0.13936035,4176.0,4175.6,3.2078]
[1760337264987,0.13936035,4176.0,4175.8,0.43079]
[1760337264988,0.3345,4175.9,4175.8,0.43079]
[1760337265387,0.13936035,4176.0,4175.6,4.26447025]
[1760337265589,0.3345,4175.9,4175.6,4.26447025]
[1760337265793,0.3345,4175.9,4175.7,0.4308]
[1760337266093,0.3345,4175.9,4175.8,0.43079]
[1760337267187,0.3345,4175.9,4175.7,0.62586025]
[1760337267388,0.57013035,4176.0,4175.7,0.62586025]
[1760337267389,0.57013035,4176.0,4175.7,0.4308]
[1760337267796,0.3345,4175.9,4175.7,0.4308]
[1760337267992,0.1373,4175.5,4175.0,3.83366025]
[1760337268196,0.43086,4175.2,4175.0,3.83366025]
[1760337268497,0.56817,4175.0,4174.6,1.05677025]
[1760337268691,0.56817,4175.0,4174.6,0.43091]
[1760337268893,0.3345,4174.9,4174.6,0.43091]
[1760337269198,0.3345,4174.9,4174.8,0.43089]
[1760337269697,0.3345,4174.9,4174.8,1.05675025]
[1760337269991,0.1373,4175.5,4174.4,3.2078]
[1760337269992,0.3345,4175.4,4175.3,0.43084]
[1760337270187,0.3345,4175.4,4175.1,0.62813506]
[1760337270390,0.4718,4175.0,4174.9,0.62813506]
[1760337270597,0.3345,4174.9,4174.8,1.05902506]
[1760337270790,0.3345,4174.9,4174.4,0.39999674]
[1760337270998,0.3345,4174.9,4174.0,3.2078]
[1760337270999,0.43095,4174.3,4174.0,3.2078]
[1760337271194,0.3345,4174.1,4174.0,3.2078]
[1760337272101,0.88508,4174.0,4173.9,0.00272664]
[1760337272490,3.95443764,4174.0,4173.9,0.00272664]
[1760337272798,0.88513,4173.5,4173.4,3.2078]
[1760337273191,0.88513,4173.5,4172.6,0.83751341]
[1760337273192,0.1298,4173.0,4172.6,0.83751341]
[1760337273399,0.3243,4172.9,4172.6,0.83751341]
[1760337273600,0.3243,4172.9,4172.6,0.43112]
[1760337273903,0.32651818,4172.9,4172.8,0.02637217]
[1760337275295,3.48312578,4172.9,4172.8,0.02637217]
[1760337275693,3.15882578,4172.9,4172.0,0.83751341]
[1760337275999,0.4541,4172.0,4171.9,3.2078]
[1760337276798,0.4541,4172.0,4171.9,3.20958664]
[1760337277295,0.4541,4172.0,4171.9,0.00178664]
[1760337277296,3.62837067,4172.0,4171.9,0.00178664]
[1760337278300,0.4541,4171.5,4171.2,0.23973629]
[1760337278498,0.43125,4171.4,4171.2,0.23973629]
[1760337278807,0.3243,4171.3,4171.2,0.23973629]
[1760337279202,3.47744577,4171.3,4171.2,3.629e-05]
[1760337279397,3.47744577,4171.3,4171.2,0.00187325]
[1760337280103,0.3243,4171.3,4171.2,0.00187325]
[1760337280702,0.3243,4171.9,4171.2,0.00187325]
[1760337280902,3.3376,4172.0,4171.7,0.43121]
[1760337281197,3.15533885,4171.9,4171.6,0.43122]
[1760337281404,0.3243,4171.8,4171.6,0.43122]
[1760337281700,0.3243,4171.8,4171.5,0.43123]
[1760337281902,3.15533885,4171.9,4171.5,0.43123]
[1760337282100,0.3243,4171.8,4171.5,0.43123]
[1760337282404,0.3243,4171.8,4171.2,0.00187325]
[1760337282998,3.47963885,4171.9,4171.2,0.00187325]
[1760337283203,3.3376,4172.0,4171.4,3.2078]
[1760337283604,0.3243,4171.9,4171.8,0.4312]
[1760337283904,3.3376,4172.0,4171.5,0.43123]
[1760337284104,3.3376,4172.0,4171.4,3.2078]
[1760337284503,0.3243,4171.9,4171.7,0.43121]
[1760337284697,3.3376,4172.0,4171.7,0.43121]
[1760337284896,0.3243,4171.9,4171.7,0.43121]
[1760337285095,0.3243,4171.9,4171.8,0.4312]
[1760337288810,0.3243,4171.9,4170.0,0.43139]
[1760337288811,0.1309,4170.5,4170.0,0.43139]
[1760337289005,0.1359,4170.0,4169.9,3.2078]
[1760337289204,0.4603,4170.0,4169.9,3.2078]
[1760337289507,3.5900487,4170.0,4169.9,3.2078]
[1760337289801,3.5900487,4170.0,4169.9,0.00230547]
[1760337290902,3.2656487,4170.0,4168.9,3.2078]
[1760337291211,0.1359,4169.5,4168.9,3.2078]
[1760337291409,0.3244,4169.4,4168.9,3.2078]
[1760337291602,0.1359,4169.5,4168.9,3.2078]
[1760337291807,0.1359,4168.5,4168.4,3.2078]
[1760337292018,0.4624903,4168.5,4168.4,3.20987356]
[1760337292908,0.3265903,4168.5,4168.4,3.20987356]
[1760337293414,0.0021903,4168.5,4168.4,3.54887356]
[1760337295816,0.0021903,4168.5,4168.4,3.20987356]
[1760337296115,0.3265903,4168.5,4168.4,3.20987356]
[1760337296306,0.0021903,4168.5,4168.4,3.54887356]
[1760337298817,0.3244,4169.9,4168.5,1.07886]
[1760337299020,0.1359,4170.0,4169.9,0.4314]
[1760337299315,0.1359,4170.5,4170.2,0.43137]
[1760337299710,0.3244,4170.3,4170.2,0.43137]
[1760337299912,0.3244,4170.2,4170.0,0.43139]
[1760337300112,0.1359,4170.0,4169.6,3.63922]
[1760337300319,0.3244,4169.9,4169.8,0.43141]
[1760337300713,0.3244,4169.8,4169.6,3.2078]
[1760337300914,0.3244,4169.7,4169.6,3.2078]
[1760337301118,3.46655574,4169.7,4169.6,3.2078]
[1760337301619,0.1359,4169.0,4168.9,3.6393]
[1760337301819,0.4603,4169.0,4168.9,3.2078]
[1760337302419,0.4603,4169.5,4168.9,3.5468]
[1760337302718,0.3244,4169.4,4169.3,0.43146]
[1760337303817,0.1359,4170.0,4169.9,0.4314]
[1760337304120,3.23713596,4170.0,4169.9,0.4314]
[1760337304321,3.56153596,4170.0,4169.9,0.4314]
[1760337304619,0.32644842,4170.3,4170.2,0.43137]
[1760337304825,0.00204842,4170.3,4169.8,3.2078]
[1760337305122,0.3244,4170.2,4169.9,0.4314]
[1760337305315,0.1359,4170.0,4169.9,0.4314]
[1760337305511,0.1359,4170.0,4169.8,3.2078]
[1760337305512,0.4603,4170.0,4169.8,3.2078]
[1760337305716,0.4603,4170.0,4169.3,3.2078]
[1760337305717,0.3244,4169.4,4169.3,3.2078]
[1760337306316,3.39998931,4169.4,4169.3,3.2078]
[1760337307117,3.39998931,4169.4,4169.1,0.43148]
[1760337307323,3.39998931,4169.4,4168.8,3.2078]
[1760337307324,0.3244,4169.3,4169.2,0.43147]
[1760337307725,0.3244,4168.9,4168.8,3.2078]
[1760337307925,0.75591,4168.9,4168.8,3.2078]
[1760337308228,0.4603,4168.5,4168.4,0.43363356]
[1760337308425,0.4603,4168.5,4168.4,0.00207356]
[1760337308616,3.53649039,4168.5,4168.4,0.00207356]
[1760337309625,0.3244,4168.5,4168.4,0.00207356]
[1760337309926,0.4603,4168.5,4168.4,0.00207356]
[1760337310127,3.55008953,4168.5,4168.4,0.00207356]
[1760337310319,3.55008953,4168.5,4167.7,3.2078]
[1760337310625,0.3244,4167.4,4167.2,3.2078]
[1760337310921,3.50636798,4167.3,4167.2,3.2078]
[1760337311121,0.43176,4166.4,4166.3,0.83751341]
[1760337311439,6.32180184,4166.4,4166.3,0.34097549]
[1760337311721,3.21041602,4166.4,4166.3,0.77274549]
[1760337311926,4.81976642,4166.9,4166.5,0.1328]
[1760337312121,0.43174,4166.7,4166.6,0.339]
[1760337312722,3.56966715,4166.7,4166.6,0.339]
[1760337313029,3.13967892,4166.7,4166.6,0.339]
[1760337313219,3.57140892,4166.7,4166.6,0.339]
[1760337315131,3.13967892,4166.7,4166.6,0.339]
[1760337315530,0.00175177,4166.7,4166.6,0.339]
[1760337316628,3.2078,4167.4,4167.1,0.3217]
[1760337316823,3.2078,4167.4,4167.0,0.1255]
[1760337316824,3.2078,4167.4,4167.3,0.75337]
[1760337317429,3.2078,4168.0,4167.5,0.1255]
[1760337317628,3.21013481,4168.0,4167.9,0.75331]
[1760337318629,10.78314,4170.7,4167.9,0.75331]
[1760337318630,4.81976642,4169.9,4169.5,0.1255]
[1760337319039,6.29093028,4170.2,4170.1,0.3217]
[1760337319332,3.2078,4170.2,4170.1,0.3217]
[1760337319533,6.32630339,4170.2,4170.1,0.32448416]
[1760337319938,6.32630339,4170.2,4170.1,0.75586416]
[1760337320639,3.11850339,4170.2,4170.1,0.75586416]
[1760337323433,3.11850339,4170.2,4169.5,0.1255]
[1760337323434,7.93826981,4170.2,4169.5,0.1255]
[1760337323742,4.81976642,4169.6,4169.5,0.1255]
[1760337324039,7.90949814,4169.6,4169.5,0.1255]
[1760337324227,8.34092814,4169.6,4169.5,0.1255]
[1760337324433,8.34092814,4169.6,4169.5,0.12826261]
[1760337325840,8.34092814,4169.6,4169.5,0.44996261]
[1760337326238,0.43148,4169.1,4169.0,0.1255]
[1760337326445,4.81976642,4169.1,4169.0,0.1255]
[1760337326745,3.15918733,4169.1,4169.0,0.1255]
[1760337326935,3.2078,4169.8,4169.0,0.1255]
[1760337326936,3.2078,4169.8,4169.0,1.20423]
[1760337327143,3.2078,4169.8,4169.7,0.43142]
[1760337327440,3.2078,4169.8,4169.7,0.4338797]
[1760337327634,3.2078,4169.8,4169.7,0.0024597]
[1760337328231,3.2078,4169.8,4169.7,0.3241597]
[1760337328431,11.74183606,4169.8,4169.7,0.3241597]
[1760337329038,11.74183606,4169.8,4169.0,0.1255]
[1760337329239,3.2078,4169.2,4169.1,0.3217]
[1760337329541,6.27520324,4169.2,4169.1,0.3217]
[1760337329941,6.27520324,4169.2,4169.1,0.32354388]
[1760337330142,3.2078,4169.7,4169.5,0.1255]
[1760337330337,3.2078,4169.7,4169.6,0.3217]
[1760337330744,0.00231034,4170.2,4169.6,0.3217]
[1760337330745,3.21011034,4170.2,4169.7,0.43142]
[1760337330946,3.21011034,4170.2,4170.1,0.3217]
[1760337331246,6.31432254,4170.2,4170.1,0.3217]
[1760337335437,3.10652254,4170.2,4170.1,3.96088]
[1760337335847,0.00231034,4170.2,4170.1,3.96088]
[1760337336548,3.14098552,4170.2,4170.1,0.3217]
[1760337338746,0.00231034,4170.2,4170.1,0.3217]
[1760337341052,3.13967199,4170.2,4170.1,0.3217]
[1760337343753,8.59003577,4170.2,4170.1,0.3217]
[1760337344253,0.43138,4170.1,4170.0,0.1255]
[1760337344546,7.38958357,4170.1,4169.5,0.1255]
[1760337344743,7.38958357,4170.1,4169.0,0.1255]
[1760337344744,0.43147,4169.2,4169.0,0.1255]
[1760337344947,3.2078,4169.1,4169.0,0.4519]
[1760337345244,6.31112357,4169.1,4169.0,0.4519]
[1760337345551,6.31318231,4169.1,4169.0,0.1255]
[1760337345850,6.31318231,4169.1,4169.0,0.12820517]
[1760337347055,6.31318231,4169.1,4169.0,0.45830517]
[1760337348550,6.31318231,4169.1,4169.0,0.12820517]
[1760337348750,6.31318231,4169.1,4168.0,0.4585]
[1760337348751,0.43159,4168.2,4168.0,0.4585]
[1760337349052,3.08154721,4168.1,4168.0,0.4585]
[1760337349349,0.43163,4167.7,4167.5,0.1284]
[1760337349652,0.43163,4167.7,4167.1,0.3301]
[1760337349653,0.43167,4167.4,4167.1,0.3301]
[1760337349853,9.03884827,4167.6,4167.5,0.1274]
[1760337350046,3.2078,4167.7,4167.6,0.3301]
[1760337350455,6.36464449,4167.7,4167.6,0.3301]
[1760337350648,47.16464449,4167.7,4167.6,0.3301]
[1760337351355,6.36464449,4167.7,4167.6,0.3301]
[1760337351656,0.43164,4167.6,4167.5,0.1274]
[1760337352050,3.61196047,4167.6,4167.5,0.1274]
[1760337352553,3.61196047,4167.6,4167.5,0.4575]
[1760337352750,3.61196047,4167.6,4167.5,0.1274]
[1760337353449,0.43168,4167.2,4167.1,0.00268071]
[1760337353654,0.43168,4167.2,4167.0,0.1274]
[1760337353655,9.09271483,4167.2,4167.0,0.1274]
[1760337353952,53.04677427,4167.2,4167.0,0.1274]
[1760337354657,53.04677427,4167.2,4167.0,0.1298586]
[1760337355154,53.04677427,4167.2,4165.6,1.0644903]
[1760337355155,0.43181,4166.0,4165.5,3.2078]
[1760337355454,3.61363396,4165.9,4165.5,3.2078]
[1760337355658,3.61363396,4165.9,4165.2,0.24008163]
[1760337355850,0.43183,4165.8,4165.2,0.24008163]
[1760337356051,8.6054103,4165.8,4165.2,0.24309466]
[1760337356252,0.43185,4165.6,4165.2,0.24309466]
[1760337356754,2.11057508,4169.0,4165.2,0.24309466]
[1760337356755,44.01067105,4167.2,4165.6,1.07962]
[1760337356952,44.01067105,4167.2,4166.4,3.63955]
[1760337357149,44.01067105,4167.2,4166.4,3.2078]
[1760337357354,3.17773925,4167.1,4166.4,3.2078]
[1760337357549,3.17773925,4167.1,4166.5,0.43175]
[1760337357761,3.17773925,4167.1,4166.6,0.43174]
[1760337357955,3.21067105,4167.2,4166.6,0.43174]
[1760337358159,3.21067105,4167.2,4166.0,0.62971331]
[1760337358160,0.00287105,4167.2,4167.0,3.2078]
[1760337358458,0.00287105,4167.2,4167.0,3.63949]
[1760337359253,0.00287105,4167.2,4167.0,3.2078]
[1760337359458,0.00287105,4167.2,4165.6,1.26274974]
[1760337359459,3.14160529,4167.1,4166.5,3.2078]
[1760337359861,3.14160529,4167.1,4166.6,0.43174]
[1760337360059,3.14160529,4167.1,4166.5,3.2078]
[1760337360060,0.00287105,4167.2,4167.0,3.2078]
[1760337360258,0.00287105,4167.2,4167.0,3.63949]
[1760337360457,0.00287105,4167.2,4167.0,3.2078]
[1760337360653,0.4317,4167.1,4166.5,3.2078]
[1760337360858,3.50185333,4167.1,4166.5,3.2078]
[1760337361064,0.43172,4166.8,4166.5,3.2078]
[1760337361256,5.45036378,4166.9,4166.5,3.2078]
[1760337361459,3.07015333,4166.7,4166.5,3.2078]
[1760337361753,0.43174,4166.7,4166.5,3.2078]
[1760337362152,3.13126637,4166.6,4166.5,3.2078]
[1760337362560,3.13126637,4166.8,4166.5,3.2078]
[1760337362750,0.00287105,4167.2,4166.5,3.2078]
[1760337362954,0.00287105,4167.2,4167.0,3.2078]
[1760337363564,0.00287105,4167.2,4167.0,3.6395]
[1760337369275,3.2078,4168.9,4167.1,1.70752116]
[1760337369473,3.2078,4168.9,4168.0,3.2078]
[1760337369670,9.02617924,4168.6,4168.0,3.2078]
[1760337369868,0.43161,4168.0,4167.4,3.2078]
[1760337370266,0.43161,4168.0,4167.9,3.2078]
[1760337370267,0.00252608,4168.0,4167.9,3.2078]
[1760337370564,0.00252608,4168.0,4167.9,3.63941]
[1760337370968,0.00252608,4168.0,4167.9,4.26770116]
[1760337371370,3.2078,4169.7,4169.0,0.43149]
[1760337371571,3.63923,4169.7,4169.1,3.2078]
[1760337371770,3.17413718,4169.4,4169.1,3.2078]
[1760337371973,3.17413718,4169.6,4169.1,3.63928]
[1760337372169,3.2078,4169.7,4169.1,3.63928]
[1760337372170,3.2078,4169.7,4169.1,3.2078]
[1760337372373,0.0019677,4169.6,4169.2,0.43147]
[1760337372575,0.0019677,4169.6,4169.4,0.43145]
[1760337372777,0.0019677,4169.6,4169.2,0.43147]
[1760337373171,0.0019677,4169.6,4169.4,0.43145]
[1760337374265,0.0019677,4169.6,4169.3,0.6295925]
[1760337374471,0.0019677,4169.6,4169.1,3.21008906]
[1760337374970,0.0019677,4169.6,4169.2,0.6295925]
[1760337375175,0.0019677,4169.6,4169.1,3.83968156]
[1760337375673,0.0019677,4169.6,4169.1,4.27116156]
[1760337375869,0.0019677,4169.6,4169.1,3.21008906]
[1760337376266,5.45036378,4169.4,4169.1,3.21008906]
[1760337376669,0.4334077,4169.6,4169.1,3.21008906]
[1760337376670,0.0019677,4169.6,4169.1,3.21008906]
[1760337377071,0.0019677,4169.6,4169.1,3.83968156]
[1760337377273,0.0019677,4169.6,4169.1,3.21008906]
[1760337377980,3.06046177,4169.5,4169.1,3.21008906]
[1760337378869,0.0019677,4169.6,4169.4,0.43145]
[1760337379079,1.68656112,4172.3,4169.1,3.21008906]
[1760337379080,3.2078,4172.0,4170.1,1.07846]
[1760337379386,3.2078,4172.0,4171.5,3.2078]
[1760337380085,3.21049563,4172.0,4171.5,3.2078]
[1760337381484,0.00269563,4172.0,4171.5,3.2078]
[1760337384183,0.00269563,4172.0,4171.8,0.3397]
[1760337384988,0.00269563,4172.0,4171.8,0.7709]
[1760337385183,0.00269563,4172.0,4171.9,0.3397]
[1760337386581,8.55107234,4172.0,4171.9,0.3397]
[1760337386887,0.00269563,4172.0,4171.9,0.3397]
[1760337388992,3.16739329,4172.0,4171.9,0.3397]
[1760337389689,7.99808881,4172.0,4171.9,0.3397]
[1760337391580,0.00269563,4172.0,4171.9,0.3397]
[1760337391788,0.00269563,4172.0,4171.9,3.5475]
[1760337392287,3.2078,4172.7,4171.9,3.5475]
[1760337392288,3.2078,4173.2,4173.0,0.1261]
[1760337392482,3.2078,4173.2,4173.1,0.3397]
[1760337393377,3.21018855,4173.2,4173.1,0.34218804]
[1760337394286,3.21018855,4173.2,4173.1,0.18039737]
[1760337394484,0.43111,4172.7,4172.5,0.1261]
[1760337394688,3.63891,4172.7,4172.5,0.1261]
[1760337394993,4.83069552,4172.6,4172.5,0.1261]
[1760337395386,4.83069552,4172.6,4172.5,0.12787904]
[1760337396491,4.83069552,4172.6,4172.5,0.46757904]
[1760337396788,4.83069552,4172.6,4172.0,0.1261]
[1760337396789,0.43117,4172.1,4172.0,0.1261]
[1760337396982,3.2078,4172.1,4172.0,0.1261]
[1760337397785,3.2078,4172.1,4172.0,0.12906931]
[1760337398391,5.26180552,4172.8,4172.5,0.1261]
[1760337398685,3.1150926,4172.7,4172.5,0.1261]
[1760337398888,3.1150926,4172.7,4172.6,0.3397]
[1760337399085,3.5462026,4172.8,4172.6,0.3397]
[1760337399290,0.43111,4172.8,4172.6,0.3397]
[1760337399594,3.1150926,4172.7,4172.6,0.3397]
[1760337401190,3.1150926,4172.7,4172.5,0.1261]
[1760337401191,0.43112,4172.6,4172.5,0.4658]
[1760337401395,0.43112,4172.6,4172.5,0.1261]
[1760337401582,0.43117,4172.2,4172.1,0.3397]
[1760337401892,8.38787316,4172.2,4172.1,0.3397]
[1760337402082,7.95670316,4172.2,4172.1,0.3397]
[1760337402283,3.12600764,4172.2,4172.1,0.3397]
[1760337403190,3.2078,4172.9,4172.6,0.3397]
[1760337404293,3.2078,4172.9,4172.5,0.1261]
[1760337404294,0.00238855,4173.2,4173.1,0.3397]
[1760337406391,0.43344855,4173.2,4173.1,0.3397]
[1760337407190,0.4311,4172.8,4172.7,0.3189]
[1760337407589,3.06316154,4172.8,4172.7,0.3189]
[1760337414189,3.06316154,4172.8,4172.5,0.1261]
[1760337414190,0.43111,4172.7,4172.5,0.1261]
[1760337414395,0.43111,4172.7,4172.6,0.3186]
[1760337414599,5.26180552,4172.7,4172.5,0.1261]
[1760337414795,8.30777233,4172.7,4172.5,0.1261]
[1760337415294,40.8,4172.6,4172.5,0.1261]
[1760337415589,40.8,4172.6,4172.5,0.4447]
[1760337415796,43.97195596,4172.6,4172.5,0.4447]
[1760337416091,0.43117,4172.1,4172.0,0.00296931]
[1760337416285,0.43123,4171.6,4171.5,0.1261]
[1760337416482,5.26192552,4171.6,4171.5,0.1261]
[1760337416687,8.44433472,4171.6,4171.5,0.4447]
[1760337416886,49.24433472,4171.6,4171.5,0.4447]
[1760337417391,52.45213472,4171.6,4171.5,0.00219851]
[1760337417894,52.45213472,4171.6,4171.5,0.44779851]
[1760337418196,47.6214392,4171.6,4171.5,0.12919851]
[1760337418396,47.6214392,4171.6,4171.5,0.00219851]
[1760337418397,52.45213472,4171.6,4171.5,0.00219851]
[1760337419599,0.43132,4170.8,4170.6,0.3186]
[1760337419795,0.43133,4170.7,4170.6,0.3186]
[1760337419993,3.47649975,4170.7,4170.6,0.3186]
[1760337420291,0.43133,4170.7,4170.6,0.3186]
[1760337420499,3.47649975,4170.7,4170.6,0.32085274]
[1760337420798,3.04516975,4170.7,4170.6,0.32085274]
[1760337421200,3.08985978,4170.8,4170.6,0.32085274]
[1760337421394,3.2078,4170.9,4170.6,0.00225274]
[1760337421588,3.52116978,4170.8,4170.7,0.3186]
[1760337421898,3.2078,4171.4,4170.7,0.3186]
[1760337422088,0.84751709,4172.5,4171.1,0.3186]
[1760337422293,3.2078,4171.9,4171.6,0.3186]
[1760337422492,3.16450862,4172.2,4172.1,0.3186]
[1760337422693,3.2078,4172.4,4172.1,0.3186]
[1760337422996,3.18806883,4172.2,4172.1,0.3186]
[1760337423199,3.18806883,4172.3,4172.1,0.3186]
[1760337423397,3.63895,4172.4,4172.0,0.127]
[1760337423603,3.18806883,4172.3,4172.0,0.127]
[1760337423791,3.18806883,4172.3,4172.1,0.3186]
[1760337423996,3.18806883,4172.3,4172.0,0.127]
[1760337424198,0.43122,4171.7,4171.5,0.127]
[1760337424399,3.2078,4171.7,4171.6,0.3186]
[1760337424804,6.35569293,4171.7,4171.6,0.3186]
[1760337426098,0.43123,4171.6,4171.5,0.127]
[1760337426511,3.61303782,4171.6,4171.5,0.4456]
[1760337426806,3.18180782,4171.6,4171.5,0.4456]
[1760337428902,3.68066719,4172.4,4172.0,0.127]
[1760337429417,3.1259311,4172.3,4172.1,0.3186]
[1760337430598,3.5570911,4172.3,4172.1,0.3186]
[1760337431002,0.43117,4172.1,4172.0,0.127]
[1760337431508,0.43117,4172.1,4171.5,0.4456]
[1760337431509,0.43123,4171.6,4171.5,0.4456]
[1760337431710,0.43121,4171.8,4171.5,0.4456]
[1760337431899,0.43121,4171.8,4171.6,0.3186]
[1760337432102,3.2078,4171.9,4171.6,0.3186]
[1760337432103,3.07829039,4171.7,4171.6,0.3186]
[1760337432514,3.07829039,4171.8,4171.6,0.3186]
[1760337432811,3.2078,4171.9,4171.6,0.3186]
[1760337433006,0.43123,4171.6,4171.5,0.4456]
[1760337433408,3.50966843,4171.6,4171.5,0.4456]
[1760337434714,3.50966843,4171.6,4171.0,0.4456]
[1760337434715,0.43128,4171.1,4171.0,0.4456]
[1760337435229,3.56400322,4171.1,4171.0,0.127]
[1760337436015,0.43132,4170.7,4170.6,0.00225274]
[1760337436217,8.46981552,4170.7,4170.6,0.00225274]
[1760337436414,11.55105927,4170.7,4170.6,0.00225274]
[1760337436615,6.72036375,4170.7,4170.6,0.32085274]